fUST/lending_fUST_20250928
["ID","MTS","AMOUNT","RATE_DAILY","PERIOD"]
[388171821,1759024240316,-71.81558965,0.00034087,7]
[388171822,1759024240328,-2089.48295277,0.00034087,7]
[388171823,1759024240338,-2314.13459227,0.00034087,7]
[388171824,1759024240348,-2045.82996006,0.00034087,7]
[388171825,1759024240360,-268.30463221,0.00034087,7]
[388171826,1759024240370,-2314.13459227,0.00034087,7]
[388171827,1759024240379,-9739.14074167,0.00034089,2]
[388171828,1759024240391,-6559.26185027,0.00034089,2]
[388171829,1759024240402,-1500.0,0.00034089,2]
[388171841,1759024243231,-90715.08557706,0.00034089,2]
[388171842,1759024243241,-160.0,0.00034092,2]
[388171843,1759024243250,-189.3309625,0.00034099,7]
[388171844,1759024243259,-380.74,0.000341,3]
[388171845,1759024243269,-151.0,0.000341,14]
[388171846,1759024243279,-3870.68942479,0.00034112,3]
[388171847,1759024243288,-592.24723048,0.00034112,2]
[388171866,1759024246273,-562.6,0.00033812,120]
[388171867,1759024246283,-562.6,0.00033949,120]
[388171868,1759024246292,-562.6,0.00034086,120]
[388171869,1759024246302,-162.45652625,0.00034087,7]
[388171870,1759024246311,-6483.37211073,0.00034112,2]
[388171871,1759024246322,-12595.61127397,0.00034112,2]
[388171872,1759024246389,-6486.45604206,0.00034112,2]
[388171874,1759024248323,10000.0,0.00025,30]
[388171914,1759024643682,-1500.0,0.00032,2]
[388171915,1759024643713,-380.0,0.00032558,2]
[388171916,1759024643741,-160.0,0.00032892,3]
[388171917,1759024643769,-338.786629,0.000329,13]
[388171918,1759024643797,-160.0,0.00032987,2]
[388171919,1759024643824,-160.0,0.00032988,2]
[388171920,1759024643858,-160.0,0.00032988,2]
[388171921,1759024643889,-226.0,0.00032988,3]
[388171922,1759024643919,-400.0,0.00032988,2]
[388171923,1759024643951,-300.0,0.00032989,3]
[388171924,1759024643980,-300.0,0.00032989,3]
[388171925,1759024644009,-278.0,0.00032989,3]
[388171926,1759024644037,-400.0,0.00032989,3]
[388171927,1759024644066,-68.05605826,0.00032989,2]
[388171933,1759024803000,411.46943892,0.00025205,2]
[388171951,1759024924596,-500.0,0.000253,2]
[388171952,1759024928613,-2.0388522,0.000253,2]
[388171967,1759024964167,-500.0,0.00030886,7]
[388171968,1759024964196,-338.887458,0.00032877,2]
[388171969,1759024964225,-160.0,0.00032987,2]
[388171970,1759024964252,-400.0,0.00032988,2]
[388171971,1759024964280,-1200.0,0.00032988,3]
[388171972,1759024964307,-400.0,0.00032989,3]
[388171973,1759024964335,-200.0,0.00032989,3]
[388171974,1759024964363,-1600.0,0.00032989,3]
[388171975,1759024964579,-500.0,0.00033572,7]
[388171976,1759024964608,-338.32462548,0.00033633,2]
[388171977,1759024964636,-962.13369081,0.00033888,2]
[388171978,1759024964664,-809.93191614,0.0003389,2]
[388171979,1759024964693,-517.04817062,0.00033973,5]
[388171980,1759024964723,-164.9047197,0.00033973,37]
[388171981,1759024964752,-501.51570606,0.00033973,5]
[388171982,1759024964780,-500.0,0.00033977,7]
[388171983,1759024964811,-500.0,0.00033977,7]
[388171984,1759024964888,-497.52231544,0.00033977,7]
[388171985,1759024964916,-500.0,0.00033977,7]
[388171986,1759024964947,-500.0,0.00033977,7]
[388171987,1759024964978,-417.21030854,0.00033977,7]
[388171988,1759024965009,-427.40810546,0.00033977,7]
[388171989,1759024965041,-260.54351908,0.00033977,7]
[388171990,1759024965074,-934.79792939,0.00033977,7]
[388171991,1759024965102,-934.79792939,0.00033977,7]
[388171992,1759024965131,-120.65185601,0.00033977,7]
[388171993,1759024965328,-814.14607338,0.00033977,7]
[388171994,1759024965359,-934.79792939,0.00033977,7]
[388171995,1759024965386,-934.79792939,0.00033977,7]
[388171996,1759024965413,-934.79792939,0.00033977,7]
[388171997,1759024965442,-934.79792939,0.00033977,7]
[388171998,1759024974085,-370.0,0.00033807,32]
[388171999,1759024974115,-179.70712052,0.00033879,2]
[388172000,1759024974147,-934.79792939,0.00033977,7]
[388172001,1759024974177,-934.79792939,0.00033977,7]
[388172002,1759024974207,-934.79792939,0.00033977,7]
[388172003,1759024974237,-934.79792939,0.00033977,7]
[388172004,1759024974266,-487.41439445,0.00033977,7]
[388172005,1759024974397,-447.38353494,0.00033977,7]
[388172006,1759024974430,-934.79792939,0.00033977,7]
[388172007,1759024974461,-934.79792939,0.00033977,7]
[388172008,1759024974492,-934.79792939,0.00033977,7]
[388172009,1759024974522,-934.79792939,0.00033977,7]
[388172010,1759024974551,-692.06156561,0.00033977,7]
[388172011,1759024974639,-242.73636378,0.00033977,7]
[388172012,1759024974669,-934.79792939,0.00033977,7]
[388172013,1759024974824,5516.01596368,0.00033977,7]
[388172014,1759024974873,2128.92544998,0.00033977,7]
[388172015,1759024981567,-208.8600105,0.000252,3]
[388172016,1759024983577,-1088.64414347,0.000252,3]
[388172017,1759024985415,-480.0,0.000252,3]
[388172019,1759024988359,-1174.22,0.000252,3]
[388172022,1759024990396,-480.0,0.000252,3]
[388172023,1759024993249,-264.04548125,0.000252,3]
[388172024,1759024994229,-1304.23036478,0.000252,3]
[388172041,1759025242128,-226.80030407,0.00029,10]
[388172054,1759025294844,-7.02107687,0.00029,10]
[388172055,1759025294875,-280.51160609,0.00032,120]
[388172056,1759025294903,-500.0,0.00032223,7]
[388172057,1759025294932,-1726.4402173,0.00032541,2]
[388172058,1759025294961,-500.0,0.00033643,120]
[388172059,1759025294991,-250.0,0.00033692,2]
[388172060,1759025295019,-500.0,0.0003378,120]
[388172061,1759025295046,-539.95461076,0.00033879,2]
[388172062,1759025295074,-621.88538923,0.0003388,2]
[388172063,1759025295280,-148.3841995,0.0003388,2]
[388172064,1759025295307,-500.0,0.00033917,120]
[388172065,1759025295336,-400.0,0.00033969,2]
[388172066,1759025295365,-344.26,0.0003397,3]
[388172067,1759025295392,-172.13,0.0003397,3]
[388172068,1759025295420,-516.43,0.0003397,3]
[388172069,1759025295447,-2350.69197628,0.00033972,2]
[388172070,1759025295517,-1136.21764844,0.00033972,2]
[388172071,1759025295544,-336.46473128,0.00033973,5]
[388172072,1759025295571,-500.0,0.00033973,5]
[388172073,1759025295602,-501.13470109,0.00033973,5]
[388172074,1759025295629,-500.0,0.00033973,5]
[388172075,1759025295655,-500.97459163,0.00033973,5]
[388172076,1759025295683,-501.21203747,0.00033973,5]
[388172077,1759025295712,-500.0,0.00033973,5]
[388172078,1759025295740,-506.70262084,0.00033973,5]
[388172079,1759025296085,-150.47821237,0.00033973,5]
[388172080,1759025296117,-160.0,0.00033974,2]
[388172081,1759025296148,-500.0,0.00033978,7]
[388172082,1759025296178,-210.8988627,0.00033978,7]
[388172083,1759025296207,-500.0,0.00033978,7]
[388172084,1759025296235,-500.0,0.00033978,7]
[388172085,1759025296269,-414.06755035,0.00033978,7]
[388172086,1759025296297,-336.53042372,0.00033978,7]
[388172087,1759025296324,-1868.05194498,0.00033979,7]
[388172088,1759025296439,-719.95601176,0.00033979,7]
[388172089,1759025296469,-183.84590502,0.00033979,7]
[388172090,1759025296503,-2588.00795674,0.00033979,7]
[388172091,1759025296532,-428.38229622,0.00033979,7]
[388172092,1759025304715,-2159.62566052,0.00033979,7]
[388172093,1759025304746,-2588.00795674,0.00033979,7]
[388172094,1759025304862,-2588.00795674,0.00033979,7]
[388172095,1759025304890,-2235.98612978,0.00033979,7]
[388172096,1759025304981,-352.02182696,0.00033979,7]
[388172097,1759025305010,-2588.00795674,0.00033979,7]
[388172098,1759025305039,-1531.94247586,0.00033979,7]
[388172099,1759025314733,-1056.06548088,0.00033979,7]
[388172100,1759025314762,-2588.00795674,0.00033979,7]
[388172101,1759025314792,-123.85516802,0.00033979,7]
[388172102,1759025324728,-534.43,0.0003397,3]
[388172103,1759025324759,-2464.15278872,0.00033979,7]
[388172104,1759025324790,-1414.83646582,0.00033979,7]
[388172105,1759025334766,-1173.17149092,0.00033979,7]
[388172106,1759025334797,-2588.00795674,0.00033979,7]
[388172133,1759025432277,-300.0,0.00032989,3]
[388172134,1759025432286,-400.0,0.00032989,2]
[388172135,1759025432295,-218.02637208,0.00032989,3]
[388172173,1759025432741,-81.97362792,0.00032989,3]
[388172175,1759025432751,-1600.0,0.00032989,3]
[388172177,1759025432760,-6451.4148933,0.0003299,2]
[388172178,1759025432771,-10880.86584556,0.0003299,2]
[388172180,1759025432779,-232.74001372,0.00033879,2]
[388172182,1759025432788,-2370.09383199,0.0003388,2]
[388172184,1759025432797,-327.50198725,0.00033973,5]
[388172186,1759025432807,-500.0,0.00033973,5]
[388172187,1759025432816,-500.38907024,0.00033973,5]
[388172189,1759025432825,-250.0,0.00033978,7]
[388172191,1759025432835,-250.0,0.00033978,7]
[388172193,1759025432843,-250.0,0.00033978,7]
[388172194,1759025432852,-250.0,0.00033978,7]
[388172195,1759025432862,-250.0,0.00033978,7]
[388172197,1759025432871,-250.0,0.00033978,7]
[388172199,1759025432881,-250.0,0.00033978,7]
[388172201,1759025432890,-250.0,0.00033978,7]
[388172203,1759025432899,-250.0,0.00033978,7]
[388172205,1759025432908,-250.0,0.00033978,7]
[388172207,1759025432918,-250.0,0.00033978,7]
[388172209,1759025432927,-250.0,0.00033978,7]
[388172211,1759025432936,-250.0,0.00033978,7]
[388172213,1759025432945,-250.0,0.00033978,7]
[388172215,1759025432955,-250.0,0.00033978,7]
[388172217,1759025432963,-140.09140018,0.00033978,7]
[388172279,1759025440287,-0.01199123,0.00033978,7]
[388172324,1759025446274,-109.89660859,0.00033978,7]
[388172325,1759025446284,-250.0,0.00033978,7]
[388172326,1759025446293,-1293.79108238,0.00033979,7]
[388172335,1759025498318,10000.01,0.00025205,2]
[388172336,1759025498341,10000.01,0.00025205,2]
[388172337,1759025498363,10000.01,0.00025205,2]
[388172338,1759025499520,-480.0,0.00025205,2]
[388172339,1759025500999,-1327.72,0.00025205,2]
[388172340,1759025503510,-480.0,0.00025205,2]
[388172341,1759025505012,-459.80081213,0.00025205,2]
[388172342,1759025507462,-318.93633998,0.00025205,2]
[388172343,1759025509397,-480.0,0.00025205,2]
[388172344,1759025511036,-1218.71,0.00025205,2]
[388172345,1759025514521,-480.0,0.00025205,2]
[388172346,1759025519941,-500.0,0.00025205,2]
[388172347,1759025524041,-436.94237404,0.00025205,2]
[388172348,1759025526489,-302.0488627,0.00025205,2]
[388172350,1759025528663,-300.0,0.00025205,2]
[388172351,1759025531350,-197.9511373,0.00025205,2]
[388172352,1759025535425,-686.14,0.00025205,2]
[388172353,1759025536925,-300.0,0.00025205,2]
[388172354,1759025538514,-345.50490779,0.00025205,2]
[388172355,1759025541036,-102.19672048,0.00025205,2]
[388172362,1759025703146,10000.01,0.0001908,2]
[388172363,1759025703168,10000.01,0.0001908,2]
[388172364,1759025703190,5883.98,0.0001908,2]
[388172371,1759026003205,4116.03,0.0001908,2]
[388172372,1759026003226,10000.01,0.0001908,2]
[388172373,1759026003247,10000.01,0.0001908,2]
[388172374,1759026003268,1767.95,0.0001908,2]
[388172378,1759026289602,163.79,0.0002799,120]
[388172381,1759026407521,-411.9906327,0.00024953,2]
[388172382,1759026412708,-300.0,0.00024953,2]
[388172383,1759026414628,-158.65792602,0.00024953,2]
[388172384,1759026416152,-241.8688627,0.00024703,2]
[388172386,1759026420418,-449.41719869,0.00024703,2]
[388172387,1759026422990,-258.1311373,0.00024703,2]
[388172388,1759026428179,-238.1311373,0.00024703,2]
[388172389,1759026430046,-341.34207398,0.00024703,2]
[388172390,1759026431297,-490.16367659,0.00024703,2]
[388172392,1759026434039,-500.0,0.00024703,2]
[388172393,1759026435197,-301.34207398,0.00024703,2]
[388172394,1759026439071,-372.89394937,0.00024703,2]
[388172395,1759026443451,-480.0,0.00024703,2]
[388172396,1759026445949,-329.32896301,0.00024703,2]
[388172397,1759026448098,-997.38092708,0.00024703,2]
[388172398,1759026448119,-454.99499998,0.00024953,2]
[388172399,1759026449992,-190.70646133,0.00024953,2]
[388172400,1759026450836,-437.18584574,0.00024953,2]
[388172401,1759026450867,-1200.0,0.00026848,2]
[388172402,1759026450896,-300.0,0.00026848,2]
[388172403,1759026450923,-300.0,0.0002699,2]
[388172404,1759026450953,-1200.0,0.00027817,2]
[388172405,1759026451238,-4888.86737935,0.00027818,2]
[388172406,1759026451324,-222.2752413,0.00027818,2]
[388172407,1759026451353,-505.54527541,0.00027973,2]
[388172408,1759026451381,-500.0,0.00027973,5]
[388172409,1759026451409,-504.50241041,0.00027973,5]
[388172410,1759026451438,-500.0,0.00027973,5]
[388172411,1759026459307,-4956.72520433,0.00027973,2]
[388172412,1759026459362,-10000.01,0.00027973,2]
[388172413,1759026459546,-3710.71453883,0.00027973,2]
[388172414,1759026459578,-878.31,0.0002799,3]
[388172415,1759026459606,-158.01,0.0002799,2]
[388172416,1759026459635,-238.61081846,0.00027996,2]
[388172417,1759026459736,-500.0,0.00027999,2]
[388172418,1759026459763,-500.0,0.00027999,2]
[388172419,1759026459794,-500.0,0.00027999,2]
[388172420,1759026459823,-500.0,0.00027999,2]
[388172421,1759026459852,-500.0,0.00027999,2]
[388172422,1759026459881,-500.0,0.00027999,2]
[388172423,1759026459911,-500.0,0.00027999,2]
[388172424,1759026459938,-345.50490779,0.00027999,2]
[388172425,1759026459968,-548.7484668,0.00027999,2]
[388172426,1759026459997,-500.0,0.00027999,2]
[388172427,1759026460344,-28.71928542,0.00027999,2]
[388172428,1759026460362,-211.50325082,0.00027999,2]
[388172429,1759026460413,-111.89446398,0.00027999,2]
[388172430,1759026460445,-478.78969403,0.00027999,2]
[388172431,1759026460476,-480.32735318,0.00027999,2]
[388172432,1759026460508,-158.65792602,0.00027999,2]
[388172433,1759026460538,-630.40589768,0.00027999,2]
[388172434,1759026460566,-490.16367659,0.00027999,2]
[388172435,1759026460596,-579.47321128,0.00027999,2]
[388172436,1759026460625,-258.28444802,0.00027999,2]
[388172437,1759026460654,-543.05762596,0.00027999,2]
[388172438,1759026460683,-392.38658897,0.00027999,2]
[388172439,1759026460713,-340.87580353,0.00027999,2]
[388172440,1759026461225,-1071.37662152,0.00027999,2]
[388172441,1759026461255,-174.31912198,0.00027999,2]
[388172442,1759026461282,-1412.25242505,0.00027999,2]
[388172443,1759026461311,-1412.25242505,0.00027999,2]
[388172444,1759026461340,-447.35638775,0.00027999,2]
[388172445,1759026461445,-964.8960373,0.00027999,2]
[388172446,1759026461473,-1412.25242505,0.00027999,2]
[388172447,1759026461502,-1412.25242505,0.00027999,2]
[388172448,1759026461531,-1008.95580015,0.00027999,2]
[388172449,1759026461647,-403.2966249,0.00027999,2]
[388172450,1759026461676,-1412.25242505,0.00027999,2]
[388172451,1759026461705,-1412.25242505,0.00027999,2]
[388172452,1759026461733,-1412.25242505,0.00027999,2]
[388172453,1759026462130,-1071.37662152,0.00027999,2]
[388172454,1759026462143,-340.87580353,0.00027999,2]
[388172455,1759026462153,-1071.37662152,0.00027999,2]
[388172456,1759026462176,-340.87580353,0.00027999,2]
[388172457,1759026462186,-379.02639637,0.00027999,2]
[388172458,1759026464051,152.58434812,0.00033816,120]
[388172459,1759026464491,-1033.22602868,0.00027999,2]
[388172460,1759026464521,-1412.25242505,0.00027999,2]
[388172461,1759026464549,-1412.25242505,0.00027999,2]
[388172462,1759026464577,-872.29581739,0.00027999,2]
[388172463,1759026464647,-539.95660766,0.00027999,2]
[388172464,1759026464687,-1412.25242505,0.00027999,2]
[388172465,1759026464715,-1412.25242505,0.00027999,2]
[388172466,1759026464744,-1412.25242505,0.00027999,2]
[388172467,1759026464842,-4344.57439579,0.00027999,2]
[388172468,1759026464889,-1526.4954497,0.00027999,2]
[388172469,1759026464907,-1310.86120842,0.00027999,2]
[388172470,1759026464944,-1507.21773767,0.00027999,2]
[388172471,1759026464975,-2641.00012887,0.00027999,2]
[388172472,1759026465022,-1703.57426692,0.00027999,2]
[388172473,1759026468597,-168.03,0.0002799,3]
[388172474,1759026468627,-4344.57439579,0.00027999,2]
[388172475,1759026468675,-974.80120842,0.00027999,2]
[388172476,1759026468708,-3369.77318737,0.00027999,2]
[388172477,1759026468755,-3260.46362526,0.00027999,2]
[388172478,1759026473561,-10000.01,0.0002699,2]
[388172480,1759026483639,2675.2186365,0.00033816,60]
[388172482,1759026493661,157.56413228,0.00033816,120]
[388172484,1759026498632,3994.0,0.00018,2]
[388172488,1759026515200,685.09004273,0.0001,7]
[388172489,1759026515285,156.02492765,0.00033816,60]
[388172492,1759026517669,5320.91995727,0.00015,2]
[388172493,1759026517690,3427.43137339,0.00015,2]
[388172494,1759026518510,151.92998844,0.00033816,120]
[388172496,1759026522418,6572.57862661,0.00024,2]
[388172497,1759026522440,1447.86137339,0.00024,2]
[388172498,1759026523983,1100.0,0.000245,5]
[388172499,1759026525256,153.37583003,0.00033816,60]
[388172500,1759026525752,4163.06644236,0.000215,2]
[388172501,1759026525894,3289.08218425,0.0002465,2]
[388172502,1759026525915,996.20362187,0.0002465,2]
[388172503,1759026527647,9003.80637813,0.00019063,7]
[388172504,1759026527668,10000.01,0.00019063,7]
[388172505,1759026527689,8963.85124797,0.00019063,7]
[388172506,1759026527900,251.69975417,0.00033816,120]
[388172507,1759026546074,-300.0,0.00026988,2]
[388172508,1759026546099,-328.0,0.00026989,2]
[388172509,1759026546119,-500.0,0.00026989,2]
[388172510,1759026546140,-500.0,0.00026989,2]
[388172511,1759026546159,-500.0,0.00026989,2]
[388172512,1759026546179,-500.0,0.00026989,2]
[388172513,1759026546199,-153.53066474,0.00026989,2]
[388172514,1759026546219,-156.0,0.00026989,2]
[388172515,1759026546240,-579.06898821,0.00026989,2]
[388172516,1759026546259,-172.08316298,0.00026989,2]
[388172517,1759026546278,-10695.2067469,0.0002699,2]
[388172518,1759026547453,-154.49509221,0.00026718,2]
[388172519,1759026549023,-170.67103699,0.00026718,2]
[388172520,1759026553170,-650.70160983,0.00026718,2]
[388172521,1759026555799,-300.0,0.00026718,2]
[388172522,1759026558943,-300.0,0.00026718,2]
[388172523,1759026560153,-558.88901462,0.00026718,2]
[388172524,1759026561555,-159.2550529,0.00026718,2]
[388172525,1759026595910,1036.15875203,0.0002494,2]
[388172526,1759026595930,632.46015937,0.0002494,2]
[388172578,1759026632456,-177.631178,0.0002656,2]
[388172580,1759026632466,-2705.98819345,0.00026718,2]
[388172582,1759026632476,-300.0,0.00026988,2]
[388172584,1759026632486,-1200.0,0.00026988,2]
[388172586,1759026632496,-154.49509221,0.00026989,2]
[388172588,1759026632505,-170.67103699,0.00026989,2]
[388172590,1759026632515,-650.70160983,0.00026989,2]
[388172592,1759026632524,-300.0,0.00026989,2]
[388172594,1759026632533,-300.0,0.00026989,2]
[388172596,1759026632543,-300.0,0.00026989,2]
[388172597,1759026632553,-11364.30047739,0.0002699,2]
[388172600,1759026632565,-13102.16448079,0.0002699,2]
[388172601,1759026632574,-17830.30176649,0.0002699,2]
[388172678,1759026640765,-0.0056445,0.0002699,2]
[388172735,1759026655879,229.43455344,0.0002494,2]
[388172737,1759026767291,-189.3309625,0.00024651,2]
[388172738,1759026770662,-189.3309625,0.00024651,2]
[388172739,1759026772886,-480.0,0.00024651,2]
[388172740,1759026776400,-376.09003931,0.00024651,2]
[388172741,1759026779425,-2009.83455134,0.00024651,2]
[388172744,1759026960763,-159.2550529,0.00024551,2]
[388172745,1759026962855,1734.33696018,0.00024305,2]
[388172746,1759026972450,-154.11092381,0.00024649,2]
[388172747,1759026975035,-5.88907619,0.00024649,2]
[388172748,1759026975057,-150.0,0.000249,2]
[388172749,1759027541100,-189.1,0.000253,2]
[388172750,1759027541120,-424.0022936,0.000253,2]
[388172751,1759027541140,-200.0,0.00026421,15]
[388172752,1759027541160,-160.0,0.00026476,2]
[388172753,1759027541179,-1000.0,0.00026484,2]
[388172754,1759027541198,-225.7278469,0.00026513,2]
[388172755,1759027541218,-1611.7083561,0.00026606,2]
[388172756,1759027541237,-300.0,0.00026988,2]
[388172757,1759027541257,-1200.0,0.00026988,2]
[388172758,1759027541276,-1200.0,0.00026989,2]
[388172759,1759027541296,-188.0,0.00026989,2]
[388172760,1759027541315,-10000.01,0.0002699,2]
[388172761,1759027541337,-175.4521098,0.00027143,2]
[388172762,1759027541356,-2503.7847276,0.00027144,2]
[388172763,1759027541375,-3591.28580915,0.00027144,2]
[388172764,1759027541399,-5377.7746973,0.00027159,2]
[388172765,1759027541420,-244.70934696,0.00027873,2]
[388172766,1759027541440,-184.85,0.0002789,7]
[388172767,1759027541459,-813.00666002,0.0002789,2]
[388172768,1759027541480,-983.3408503,0.0002789,2]
[388172769,1759027541502,-505.22252842,0.00027973,2]
[388172770,1759027541522,-500.0,0.00027973,5]
[388172771,1759027541541,-500.0,0.00027973,5]
[388172772,1759027541561,-500.0,0.00027973,5]
[388172773,1759027541580,-38055.3874476,0.00027979,2]
[388172774,1759027541604,-803.50318033,0.00027979,2]
[388172775,1759027541623,-151.0,0.0002798,7]
[388172776,1759027541644,-151.0,0.0002798,7]
[388172777,1759027541663,-151.0,0.0002798,7]
[388172778,1759027541683,-151.972929,0.0002798,7]
[388172779,1759027541702,-153.592318,0.0002798,7]
[388172780,1759027541720,-231.51,0.0002798,3]
[388172781,1759027541740,-694.53,0.0002798,3]
[388172782,1759027541761,-500.0,0.00027983,2]
[388172783,1759027541780,-500.0,0.00027983,2]
[388172784,1759027541799,-260.67251826,0.00027983,2]
[388172785,1759027541819,-151.0,0.00027983,2]
[388172786,1759027541840,-151.0,0.00027983,2]
[388172787,1759027541860,-151.0,0.00027983,2]
[388172788,1759027541882,-151.0,0.00027983,2]
[388172789,1759027541902,-151.0,0.00027983,2]
[388172790,1759027541925,-151.0,0.00027983,2]
[388172791,1759027541945,-151.0,0.00027983,2]
[388172792,1759027541965,-151.0,0.00027983,2]
[388172793,1759027541984,-151.0,0.00027983,2]
[388172794,1759027542005,-151.0,0.00027983,2]
[388172795,1759027542024,-151.0,0.00027983,2]
[388172796,1759027542045,-151.0,0.00027983,2]
[388172797,1759027542065,-151.0,0.00027983,2]
[388172798,1759027542084,-151.0,0.00027983,2]
[388172799,1759027542105,-151.0,0.00027983,2]
[388172800,1759027542127,-294.70866788,0.00027983,2]
[388172801,1759027542147,-195.11802291,0.00027987,2]
[388172802,1759027542168,-1760.10577285,0.00027987,2]
[388172803,1759027542189,-217.72677569,0.00027987,2]
[388172804,1759027542209,-1760.10577285,0.00027987,2]
[388172805,1759027542230,-1760.10577285,0.00027987,2]
[388172806,1759027542250,-1760.10577285,0.00027987,2]
[388172807,1759027542517,-1760.10577285,0.00027987,2]
[388172808,1759027542538,-1760.10577285,0.00027987,2]
[388172809,1759027542559,-1760.10577285,0.00027987,2]
[388172810,1759027542580,-1760.10577285,0.00027987,2]
[388172811,1759027542603,-1760.10577285,0.00027987,2]
[388172812,1759027542622,-1760.10577285,0.00027987,2]
[388172813,1759027542643,-1760.10577285,0.00027987,2]
[388172814,1759027542663,-1760.10577285,0.00027987,2]
[388172815,1759027542684,-1760.10577285,0.00027987,2]
[388172816,1759027542704,-1760.10577285,0.00027987,2]
[388172817,1759027542724,-1760.10577285,0.00027987,2]
[388172818,1759027542745,-1760.10577285,0.00027987,2]
[388172819,1759027542766,-1760.10577285,0.00027987,2]
[388172820,1759027542786,-1760.10577285,0.00027987,2]
[388172821,1759027542807,-1760.10577285,0.00027987,2]
[388172822,1759027542827,-1760.10577285,0.00027987,2]
[388172823,1759027542847,-1848.11106149,0.00027987,2]
[388172824,1759027542868,-1848.11106149,0.00027987,2]
[388172825,1759027542888,-1848.11106149,0.00027987,2]
[388172826,1759027542908,-1848.11106149,0.00027987,2]
[388172827,1759027542927,-1848.11106149,0.00027987,2]
[388172828,1759027542947,-1848.11106149,0.00027987,2]
[388172829,1759027542968,-1848.11106149,0.00027987,2]
[388172830,1759027542989,-1848.11106149,0.00027987,2]
[388172831,1759027543009,-151.0,0.00027987,7]
[388172832,1759027543028,-155.597,0.00027988,2]
[388172833,1759027543048,-168.907607,0.00027988,7]
[388172834,1759027543067,-151.0,0.00027988,7]
[388172835,1759027543086,-151.0,0.00027988,7]
[388172836,1759027543104,-151.0,0.00027988,7]
[388172837,1759027543125,-151.0,0.00027988,7]
[388172838,1759027543144,-215.118559,0.00027988,7]
[388172839,1759027543164,-215.118559,0.00027988,7]
[388172840,1759027543184,-215.118559,0.00027988,7]
[388172841,1759027543202,-215.118559,0.00027988,7]
[388172842,1759027543221,-152.22236,0.00027988,7]
[388172843,1759027543241,-151.0,0.00027989,2]
[388172844,1759027543262,-151.6071163,0.00027989,2]
[388172845,1759027543284,-151.0,0.00027989,2]
[388172846,1759027543302,-151.0,0.00027989,2]
[388172847,1759027543321,-500.0,0.00027989,2]
[388172848,1759027543341,-500.0,0.00027989,2]
[388172849,1759027543362,-500.0,0.00027989,2]
[388172850,1759027543383,-500.0,0.00027989,2]
[388172851,1759027543405,-500.0,0.00027989,2]
[388172852,1759027543426,-500.0,0.00027989,2]
[388172853,1759027543446,-500.0,0.00027989,2]
[388172854,1759027543466,-151.0,0.00027989,2]
[388172855,1759027543486,-151.0,0.00027989,2]
[388172856,1759027543507,-500.0,0.00027989,2]
[388172857,1759027543527,-500.0,0.00027989,2]
[388172858,1759027543547,-500.0,0.00027989,2]
[388172859,1759027543567,-500.0,0.00027989,2]
[388172860,1759027543586,-500.0,0.00027989,2]
[388172861,1759027543608,-151.0,0.00027989,2]
[388172862,1759027543628,-151.0,0.00027989,2]
[388172863,1759027543649,-151.0,0.00027989,2]
[388172864,1759027543668,-500.0,0.00027989,2]
[388172865,1759027543686,-151.0,0.00027989,2]
[388172866,1759027543704,-500.0,0.00027989,2]
[388172867,1759027543721,-163.53164836,0.00027989,2]
[388172868,1759027543740,-151.0,0.00027989,2]
[388172869,1759027543760,-151.0,0.00027989,2]
[388172870,1759027543779,-500.0,0.00027989,2]
[388172871,1759027543799,-500.0,0.00027989,2]
[388172872,1759027543818,-500.0,0.00027989,2]
[388172873,1759027543837,-151.0,0.00027989,2]
[388172874,1759027543855,-151.0,0.00027989,2]
[388172875,1759027543874,-500.0,0.00027989,2]
[388172876,1759027543905,-151.34192869,0.00027989,2]
[388172877,1759027543935,-230.65981031,0.00027989,2]
[388172878,1759027543965,-276.68408791,0.00027989,2]